bitfinex-derivatives/quotes_BTCF0:USTF0_20250902
["timestamp","ask_amount","ask_price","bid_price","bid_amount"]
[1756819982053,0.38055,109480.0,109460.0,0.40963]
[1756819982250,0.3812275,109490.0,109470.0,0.99915]
[1756819982458,0.4109775,109490.0,109470.0,0.99915]
[1756819982656,0.4109775,109490.0,109460.0,0.3638]
[1756819982657,0.01975,109480.0,109460.0,0.3638]
[1756819982866,0.38055,109480.0,109470.0,0.96344]
[1756819983455,0.01975,109470.0,109460.0,0.003]
[1756819983664,0.4608,109470.0,109440.0,0.96276]
[1756819983857,0.93046596,109470.0,109450.0,0.01447]
[1756819984064,0.93046596,109470.0,109450.0,0.0503]
[1756819984255,0.4608,109470.0,109450.0,0.0503]
[1756819984457,0.4608,109470.0,109460.0,1.36015]
[1756819984458,0.1,109470.0,109460.0,1.36015]
[1756819984656,0.096,109470.0,109460.0,1.82981596]
[1756819984956,0.3792275,109490.0,109470.0,0.03583]
[1756819985152,0.89889346,109490.0,109470.0,0.03583]
[1756819985472,0.83046596,109480.0,109470.0,0.01329803]
[1756819985764,0.46966596,109480.0,109470.0,0.01329803]
[1756819985959,0.84721596,109480.0,109470.0,0.01329803]
[1756819986464,0.3792275,109490.0,109470.0,0.40871803]
[1756819986757,0.37755,109480.0,109470.0,0.01329803]
[1756819987157,0.38055,109480.0,109470.0,0.01329803]
[1756819987357,0.003,109480.0,109470.0,0.40871803]
[1756819987562,0.003,109480.0,109470.0,0.04791803]
[1756819987961,0.003,109480.0,109470.0,0.65871803]
[1756819988566,0.003,109480.0,109470.0,0.29791803]
[1756819988866,0.003,109480.0,109470.0,0.65871803]
[1756819989061,0.008,109480.0,109470.0,1.12938399]
[1756819989258,0.008,109480.0,109470.0,0.65971803]
[1756819989660,0.008,109480.0,109470.0,0.75106203]
[1756819989859,0.008,109480.0,109470.0,1.56072799]
[1756819990062,0.008,109480.0,109470.0,1.54742996]
[1756819990258,0.37929693,109520.0,109480.0,0.0913292]
[1756819990460,0.37929693,109520.0,109510.0,0.03462]
[1756819990668,0.37929693,109520.0,109510.0,1.01575561]
[1756819990969,0.01849693,109520.0,109510.0,1.84622157]
[1756819991466,0.01849693,109520.0,109510.0,2.18753217]
[1756819991669,0.01849693,109520.0,109510.0,2.09622157]
[1756819991875,0.03049693,109520.0,109510.0,0.40947561]
[1756819992075,0.65804693,109520.0,109510.0,0.01405561]
[1756819992372,1.15771289,109520.0,109510.0,0.01405561]
[1756819992560,1.12771289,109520.0,109510.0,0.01405561]
[1756819992764,0.00269,109510.0,109470.0,0.83966976]
[1756819993068,0.3608,109490.0,109480.0,0.03462]
[1756819993264,0.3608,109510.0,109500.0,0.01472]
[1756819993857,0.36349,109510.0,109500.0,0.01472]
[1756819994074,0.3608,109510.0,109500.0,0.04934]
[1756819994261,0.36349,109510.0,109480.0,0.39542]
[1756819994563,0.00169,109490.0,109480.0,0.26]
[1756819994768,0.3608,109500.0,109480.0,0.29462]
[1756819994956,0.3608,109510.0,109490.0,0.39542]
[1756819995155,0.3608,109510.0,109490.0,0.01]
[1756819995156,0.3608,109500.0,109490.0,0.01]
[1756819995355,0.83046596,109500.0,109490.0,0.01]
[1756819995572,1.08046596,109500.0,109490.0,0.01]
[1756819996458,1.08046596,109500.0,109480.0,0.002]
[1756819996667,0.83215596,109490.0,109480.0,0.012]
[1756819996861,2.04783596,109490.0,109480.0,0.00231]
[1756819997166,1.10068657,109490.0,109480.0,0.00231]
[1756819997372,2.06664657,109490.0,109480.0,0.00231]
[1756819997560,1.10068657,109490.0,109480.0,0.00231]
[1756819998369,1.09868657,109490.0,109480.0,0.002]
[1756819998870,2.06628657,109490.0,109480.0,0.002]
[1756819999061,2.42628657,109490.0,109480.0,0.002]
[1756819999262,2.43628657,109490.0,109480.0,0.002]
[1756819999459,1.98596308,109490.0,109440.0,0.02014635]
[1756819999660,0.83046596,109450.0,109440.0,0.01]
[1756820000071,0.3608,109450.0,109440.0,0.04462]
[1756820000260,0.3608,109450.0,109440.0,0.01]
[1756820000461,0.83046596,109450.0,109440.0,0.01]
[1756820000866,0.3608,109450.0,109440.0,0.011]
[1756820001072,0.3608,109450.0,109440.0,0.262]
[1756820001267,0.3608,109450.0,109440.0,0.29662]
[1756820001571,0.3608,109450.0,109440.0,0.261]
[1756820001764,0.3608,109450.0,109440.0,0.29562]
[1756820001765,0.3658,109450.0,109440.0,0.29562]
[1756820001971,0.3688,109450.0,109440.0,0.29462]
[1756820002467,0.3648,109450.0,109440.0,0.29462]
[1756820002668,0.004,109450.0,109440.0,1.09428596]
[1756820002973,0.004,109450.0,109440.0,2.41692596]
[1756820003170,0.004,109450.0,109440.0,2.0386306]
[1756820003367,0.004,109450.0,109440.0,0.01]
[1756820003578,0.83146596,109450.0,109440.0,0.01]
[1756820003762,0.83346596,109450.0,109440.0,0.01]
[1756820003972,0.83346596,109450.0,109420.0,0.0207031]
[1756820004278,0.83346596,109450.0,109380.0,0.25926326]
[1756820004279,1.20961645,109430.0,109380.0,0.25926326]
[1756820004462,0.3608,109390.0,109380.0,0.35]
[1756820004667,0.83046596,109390.0,109380.0,0.01]
[1756820004863,0.3608,109390.0,109380.0,0.01]
[1756820005063,0.3608,109390.0,109380.0,0.26]
[1756820005268,0.3608,109390.0,109380.0,0.29462]
[1756820005469,0.37952659,109410.0,109400.0,0.01472]
[1756820005665,0.37952659,109410.0,109400.0,0.04934]
[1756820006270,0.37952659,109410.0,109400.0,0.65934]
[1756820006468,0.01872659,109410.0,109400.0,0.65934]
[1756820006879,0.01872659,109410.0,109400.0,1.58120996]
[1756820007068,0.00872659,109410.0,109400.0,1.58120996]
[1756820007664,0.00872659,109410.0,109400.0,1.02014]
[1756820007870,0.00872659,109410.0,109400.0,1.73178]
[1756820008083,0.00872659,109410.0,109400.0,0.77014]
[1756820008378,0.00872659,109410.0,109400.0,1.73358]
[1756820008578,0.00872659,109410.0,109400.0,0.41134]
[1756820008766,0.36952659,109410.0,109400.0,0.10472]
[1756820008969,0.00872659,109410.0,109400.0,0.75114]
[1756820009174,0.00872659,109410.0,109400.0,0.75414]
[1756820009473,0.00872659,109410.0,109400.0,0.46952]
[1756820010078,0.00872659,109410.0,109400.0,0.50414]
[1756820010269,0.00872659,109410.0,109400.0,0.14334]
[1756820010475,0.36952659,109410.0,109400.0,0.14334]
[1756820010670,0.00872659,109410.0,109400.0,0.14334]
[1756820010983,0.00872659,109410.0,109400.0,1.54321006]
[1756820011277,0.00972659,109410.0,109400.0,0.98114]
[1756820011979,0.00972659,109410.0,109400.0,1.95431656]
[1756820012176,0.00972659,109410.0,109400.0,1.95331656]
[1756820012381,0.00872659,109410.0,109400.0,2.42398252]
[1756820012678,0.00872659,109410.0,109400.0,1.95431656]
[1756820012888,0.00872659,109410.0,109400.0,2.42398252]
[1756820013079,0.00872659,109410.0,109400.0,0.38331656]
[1756820013271,0.00872659,109410.0,109400.0,1.06343656]
[1756820013272,0.36952659,109410.0,109400.0,1.06343656]
[1756820013477,0.00872659,109410.0,109400.0,1.06343656]
[1756820013784,0.36952659,109410.0,109400.0,1.06343656]
[1756820014170,0.36952659,109410.0,109400.0,1.02881656]
[1756820014381,0.00872659,109410.0,109400.0,1.63303656]
[1756820014682,0.00872659,109410.0,109400.0,2.41370252]
[1756820014876,0.00872659,109410.0,109400.0,0.10431656]
[1756820015074,0.00872659,109410.0,109400.0,0.07869656]
[1756820015479,0.36952659,109410.0,109400.0,0.38572]
[1756820015889,0.36952659,109410.0,109400.0,0.42097]
[1756820016480,0.36952659,109410.0,109400.0,1.37901]
[1756820016781,0.00872659,109410.0,109400.0,1.37901]
[1756820016977,0.36952659,109410.0,109400.0,1.37901]
[1756820017169,0.36952659,109410.0,109400.0,0.38772]
[1756820017375,1.08919255,109410.0,109400.0,0.003]
[1756820017677,0.61952659,109410.0,109400.0,0.003]
[1756820017879,2.04687255,109410.0,109400.0,0.001]
[1756820018079,1.55085255,109410.0,109350.0,0.05072]
[1756820018284,0.46966596,109360.0,109350.0,0.43072]
[1756820018469,0.3608,109360.0,109350.0,0.43072]
[1756820018979,0.3608,109360.0,109350.0,0.68072]
[1756820019180,0.37910745,109390.0,109360.0,0.03625]
[1756820019485,0.3608,109380.0,109370.0,0.03625]
[1756820019984,0.37910745,109390.0,109370.0,0.64705]
[1756820020179,0.01830745,109390.0,109380.0,0.03625]
[1756820020777,0.37910745,109390.0,109380.0,0.03625]
[1756820021382,0.01830745,109390.0,109380.0,0.03625]
[1756820021885,0.01830745,109390.0,109380.0,0.28625]
[1756820022180,0.01930745,109390.0,109380.0,0.98705]
[1756820022382,0.02130745,109390.0,109380.0,1.44671596]
[1756820022680,0.02230745,109390.0,109380.0,1.11671596]
[1756820022886,0.02430745,109390.0,109380.0,0.40705]
[1756820023081,0.02430745,109390.0,109380.0,0.3708]
[1756820023286,0.02430745,109390.0,109380.0,0.65705]
[1756820023487,0.02430745,109390.0,109380.0,0.97705]
[1756820023986,0.02130745,109390.0,109380.0,1.44671596]
[1756820024183,0.02030745,109390.0,109380.0,1.56813566]
[1756820024380,0.02030745,109390.0,109380.0,1.47671596]
[1756820024581,0.02030745,109390.0,109380.0,0.40705]
[1756820024886,0.02030745,109390.0,109380.0,1.00257]
[1756820024887,0.38110745,109390.0,109380.0,1.00257]
[1756820025088,0.38010745,109390.0,109380.0,1.00257]
[1756820025386,0.38010745,109390.0,109380.0,0.99229]
[1756820025688,0.37910745,109390.0,109380.0,1.00209]
[1756820025883,0.01830745,109390.0,109380.0,1.35289]
[1756820026091,0.01930745,109390.0,109380.0,1.72289]
[1756820026479,0.00872659,109410.0,109380.0,2.53397576]
[1756820026686,0.36982659,109480.0,109450.0,0.01415]
[1756820026986,0.3708,109500.0,109450.0,0.01415]
[1756820026987,0.02708,109510.0,109480.0,0.03625]
[1756820027182,0.001,109490.0,109480.0,1.27691994]
[1756820027484,0.02708,109520.0,109480.0,1.33200614]
[1756820027679,0.83046596,109530.0,109510.0,0.3608]
[1756820027680,0.3608,109530.0,109510.0,0.3608]
[1756820027883,0.0364717,109540.0,109520.0,1.28848]
[1756820028083,0.87674596,109540.0,109520.0,0.41085398]
[1756820028283,0.87674596,109540.0,109520.0,0.01380398]
[1756820028284,0.02808,109530.0,109520.0,0.01380398]
[1756820028484,0.02808,109530.0,109520.0,0.98064398]
[1756820028686,0.001,109530.0,109520.0,1.34144398]
[1756820028888,0.001,109530.0,109520.0,1.37769398]
[1756820029077,0.001,109530.0,109520.0,1.71769398]
[1756820029280,0.38,109560.0,109530.0,0.03625]
[1756820029488,0.38,109560.0,109550.0,0.4112]
[1756820029699,0.38788,109580.0,109550.0,1.18841994]
[1756820029989,0.38788,109580.0,109570.0,0.03625]
[1756820029990,0.3608,109580.0,109570.0,0.03625]
[1756820030190,1.00788,109580.0,109570.0,0.01380398]
[1756820030495,1.79854596,109580.0,109570.0,0.01380398]
[1756820030691,1.79754596,109580.0,109540.0,2.2918]
[1756820030889,0.7408,109580.0,109550.0,0.84461596]
[1756820031086,0.9908,109580.0,109550.0,0.41495]
[1756820031281,0.37507,109560.0,109550.0,1.0094]
[1756820031485,0.37507,109560.0,109550.0,0.04]
[1756820031792,0.7408,109580.0,109560.0,0.03625]
[1756820031991,0.01427,109560.0,109550.0,0.01415]
[1756820032292,0.7468,109580.0,109550.0,0.81690615]
[1756820032587,0.7468,109580.0,109550.0,1.39208]
[1756820032588,1.21955615,109580.0,109550.0,1.39208]
[1756820032788,1.21955615,109580.0,109560.0,0.03625]
[1756820032789,0.3608,109570.0,109560.0,0.03625]
[1756820032990,0.01427,109560.0,109550.0,0.98499]
[1756820033196,0.84982615,109560.0,109550.0,0.01]
[1756820033490,1.09982615,109560.0,109550.0,0.01]
[1756820033886,1.10182615,109560.0,109550.0,0.01]
[1756820034088,1.46755615,109560.0,109520.0,0.39705]
[1756820034389,0.3608,109550.0,109530.0,0.50900615]
[1756820034590,0.37507,109550.0,109530.0,0.40625]
[1756820034793,0.3648,109560.0,109540.0,1.84052615]
[1756820035093,0.48702615,109550.0,109530.0,1.36729]
[1756820035397,0.84782615,109540.0,109530.0,0.01]
[1756820035793,0.37507,109540.0,109530.0,0.01]
[1756820036295,0.48702615,109540.0,109530.0,0.011]
[1756820036589,0.3608,109550.0,109540.0,0.03625]
[1756820036780,0.73587,109550.0,109530.0,0.03725]
[1756820036981,0.3608,109540.0,109530.0,0.03725]
[1756820037185,0.3608,109540.0,109530.0,0.011]
[1756820037186,0.84782615,109540.0,109530.0,0.011]
[1756820037594,0.37507,109540.0,109530.0,0.011]
[1756820037794,1.09782615,109540.0,109530.0,0.011]
[1756820037990,0.83355615,109540.0,109530.0,0.001]
[1756820038295,1.08355615,109540.0,109530.0,0.001]
[1756820038597,0.01327,109530.0,109500.0,2.9701712]
[1756820038782,0.3608,109520.0,109500.0,3.3201712]
[1756820038987,0.3608,109540.0,109510.0,0.50900615]
[1756820039184,0.3608,109530.0,109510.0,1.16355615]
[1756820039387,0.01327,109520.0,109510.0,0.6908]
[1756820039803,1.09682615,109520.0,109510.0,0.12]
[1756820039995,1.09682615,109520.0,109500.0,0.0345212]
[1756820040189,0.37407,109510.0,109500.0,0.3745212]
[1756820040386,0.84682615,109510.0,109500.0,0.3603712]
[1756820040591,0.84682615,109510.0,109460.0,0.83355615]
[1756820040592,0.01327,109500.0,109460.0,0.83355615]
[1756820040791,0.3608,109470.0,109460.0,0.35]
[1756820040991,1.20762615,109470.0,109460.0,0.35]
[1756820041192,1.45762615,109470.0,109460.0,0.35]
[1756820041386,1.45462615,109470.0,109460.0,0.12673]
[1756820041589,1.45462615,109470.0,109400.0,0.0504]
[1756820041590,0.3608,109460.0,109400.0,0.0504]
[1756820041898,0.3608,109410.0,109400.0,0.2904]
[1756820042195,0.82155615,109420.0,109410.0,0.03625]
[1756820042394,0.83355615,109420.0,109410.0,0.12625]
[1756820042593,0.83355615,109420.0,109410.0,0.40625]
[1756820042785,0.47275615,109420.0,109400.0,0.01415]
[1756820042985,0.3608,109420.0,109400.0,0.7512]
[1756820043190,0.3608,109420.0,109400.0,0.0504]
[1756820043397,0.3608,109410.0,109400.0,0.2404]
[1756820043599,0.3608,109410.0,109400.0,0.20415]
[1756820043994,0.3608,109410.0,109400.0,0.4904]
[1756820044197,0.3608,109430.0,109400.0,1.79123]
[1756820044385,0.3608,109450.0,109420.0,0.39705]
[1756820044589,0.3608,109450.0,109430.0,0.03625]
[1756820044986,0.82037818,109450.0,109420.0,0.03625]
[1756820045195,0.3608,109430.0,109410.0,0.03625]
[1756820045394,0.3608,109430.0,109420.0,0.03625]
[1756820045688,0.3648,109430.0,109420.0,0.03625]
[1756820046199,0.3638,109430.0,109420.0,0.13625]
[1756820046398,0.004,109430.0,109420.0,0.28625]
[1756820046600,0.3608,109440.0,109430.0,0.03699]
[1756820046795,0.004,109430.0,109400.0,1.02798]
[1756820046992,0.3608,109420.0,109400.0,1.33798]
[1756820047197,0.3608,109430.0,109410.0,0.03699]
[1756820047400,0.3608,109420.0,109410.0,0.39699]
[1756820047602,1.44377818,109450.0,109410.0,0.9708]
[1756820047603,0.3608,109440.0,109410.0,0.9708]
[1756820047808,0.3698,109430.0,109420.0,0.03799]
[1756820048102,0.3738,109430.0,109420.0,0.001]
[1756820048292,1.08337818,109430.0,109420.0,0.001]
[1756820048606,1.08837818,109430.0,109420.0,0.002]
[1756820048994,1.09237818,109430.0,109420.0,0.001]
[1756820049301,0.018,109430.0,109420.0,0.28799]
[1756820049604,0.013,109430.0,109420.0,1.7142163]
[1756820049790,0.029,109430.0,109420.0,1.98483]
[1756820050104,0.035,109430.0,109420.0,0.44979]
[1756820050310,0.035,109430.0,109420.0,1.06375]
[1756820050604,0.035,109430.0,109420.0,1.67455]
[1756820050810,0.035,109430.0,109420.0,1.68455]
[1756820051102,0.022,109430.0,109420.0,1.93455]
[1756820051303,0.3648,109440.0,109420.0,0.45779]
[1756820051496,0.002,109430.0,109420.0,1.43215]
[1756820051902,0.002,109430.0,109420.0,1.75215]
[1756820052095,0.002,109430.0,109420.0,0.77779]
[1756820052314,0.3648,109460.0,109420.0,1.58596]
[1756820052500,0.3648,109460.0,109450.0,0.01364]
[1756820052699,0.3608,109460.0,109450.0,0.05063]
[1756820053000,0.3608,109480.0,109460.0,0.03699]
[1756820053308,0.3608,109480.0,109450.0,0.41143]
[1756820053309,0.3648,109470.0,109450.0,0.41143]
[1756820053507,0.3648,109460.0,109430.0,0.3608]
[1756820053693,0.3608,109470.0,109430.0,0.3608]
[1756820053694,0.004,109450.0,109430.0,1.41243]
[1756820053903,1.33544,109480.0,109430.0,1.41243]
[1756820053904,0.3608,109480.0,109460.0,0.03699]
[1756820054595,0.3608,109470.0,109450.0,0.37444]
[1756820054797,0.3608,109470.0,109450.0,1.35092]
[1756820055008,0.3648,109480.0,109460.0,0.03699]
[1756820055202,0.3608,109480.0,109450.0,1.35092]
[1756820055403,0.3648,109470.0,109450.0,1.02711]
[1756820055610,0.004,109460.0,109450.0,0.01364]
[1756820055810,0.3608,109480.0,109460.0,0.03699]
[1756820056103,0.3608,109470.0,109460.0,0.03699]
[1756820056510,0.3648,109480.0,109460.0,0.03699]
[1756820057006,0.3738,109480.0,109460.0,0.97636]
[1756820057212,0.3738,109480.0,109470.0,0.03699]
[1756820057400,0.013,109480.0,109470.0,0.03699]
[1756820057802,0.3778,109480.0,109460.0,0.39879]
[1756820058100,0.3768,109470.0,109460.0,0.001]
[1756820058302,0.6268,109470.0,109460.0,0.001]
[1756820058506,0.9328,109470.0,109420.0,2.29144]
[1756820058707,0.3638,109440.0,109420.0,2.65843]
[1756820058902,0.3598,109450.0,109430.0,0.97396]
[1756820059100,0.3608,109470.0,109450.0,0.01364]
[1756820059306,0.3608,109470.0,109460.0,0.03699]
[1756820059808,0.3648,109470.0,109460.0,0.03699]
[1756820060113,0.3748,109470.0,109450.0,0.41143]
[1756820060612,0.3718,109470.0,109450.0,0.37444]
[1756820060815,0.3748,109470.0,109450.0,0.41143]
[1756820061115,0.3718,109470.0,109460.0,0.03699]
[1756820061406,0.3648,109470.0,109460.0,0.03699]
[1756820061607,0.004,109470.0,109460.0,1.00911]
[1756820061812,0.3608,109480.0,109470.0,0.03699]
[1756820062210,0.014,109470.0,109460.0,0.39879]
[1756820062399,0.014,109470.0,109460.0,1.70099]
[1756820062599,0.014,109470.0,109460.0,0.03799]
[1756820062804,0.011,109470.0,109460.0,0.97296]
[1756820063006,0.011,109470.0,109460.0,1.00995]
[1756820063208,0.011,109470.0,109460.0,1.37075]
[1756820063405,0.011,109470.0,109460.0,0.28799]
[1756820063601,0.84729713,109470.0,109460.0,0.03799]
[1756820063807,0.84729713,109470.0,109460.0,0.001]
[1756820063808,0.85029713,109470.0,109460.0,0.001]
[1756820064009,0.84729713,109470.0,109460.0,0.03799]
[1756820064304,0.3738,109470.0,109460.0,0.03799]
[1756820064501,0.013,109470.0,109460.0,1.00875]
[1756820064702,0.014,109470.0,109460.0,1.00875]
[1756820064906,0.014,109470.0,109460.0,2.40304713]
[1756820065103,0.014,109470.0,109460.0,0.03799]
[1756820065303,0.3728,109470.0,109460.0,1.00803]
[1756820065510,0.3728,109470.0,109460.0,0.03799]
[1756820065707,0.85029713,109470.0,109460.0,0.001]
[1756820066108,0.3738,109470.0,109460.0,0.001]
[1756820066309,0.015,109470.0,109460.0,1.12148713]
[1756820066513,0.015,109470.0,109460.0,1.21283963]
[1756820067021,0.015,109470.0,109460.0,1.12148713]
[1756820067417,0.015,109470.0,109460.0,1.00667]
[1756820067718,0.015,109470.0,109460.0,2.17096713]
[1756820067924,0.015,109470.0,109460.0,1.09148713]
[1756820068224,0.3758,109470.0,109460.0,1.00575]
[1756820068523,0.015,109470.0,109460.0,1.84924713]
[1756820069015,0.002,109470.0,109460.0,1.00475]
[1756820069220,0.015,109470.0,109460.0,1.35575]
[1756820069423,0.015,109470.0,109460.0,1.00575]
[1756820069916,0.3758,109470.0,109460.0,1.00575]
[1756820070118,1.42929713,109470.0,109440.0,0.02047484]
[1756820070311,0.002,109440.0,109420.0,0.10149818]
[1756820070516,0.83629713,109430.0,109420.0,0.36]
[1756820070721,0.83629713,109430.0,109410.0,0.02061303]
[1756820070915,0.83429713,109420.0,109410.0,0.09061303]
[1756820071119,0.3608,109420.0,109410.0,0.12760303]
[1756820071319,0.3608,109430.0,109410.0,1.05977303]
[1756820071612,0.3608,109430.0,109420.0,0.03699]
[1756820071915,0.3688,109440.0,109420.0,0.001]
[1756820072118,0.3688,109440.0,109430.0,0.03699]
[1756820072318,0.3688,109440.0,109430.0,1.31619]
[1756820072518,0.3608,109440.0,109430.0,1.34619]
[1756820072721,0.3608,109440.0,109430.0,1.00619]
[1756820073025,0.3608,109450.0,109440.0,0.03699]
[1756820073426,0.83429713,109460.0,109450.0,0.05063]
[1756820073726,0.83629713,109460.0,109450.0,0.01364]
[1756820073913,1.08429713,109460.0,109430.0,1.00619]
[1756820074118,0.47349713,109440.0,109420.0,0.42630818]
[1756820074324,0.3608,109430.0,109420.0,0.03799]
[1756820074511,0.83429713,109430.0,109420.0,0.03799]
[1756820074922,0.3608,109440.0,109420.0,0.361]
[1756820075128,0.3608,109450.0,109440.0,0.03699]
[1756820075725,0.83429713,109460.0,109450.0,0.01364]
[1756820076028,0.89629713,109460.0,109440.0,0.03699]
[1756820076229,0.47349713,109450.0,109440.0,0.03699]
[1756820076428,0.001,109450.0,109440.0,0.03699]
[1756820076628,0.001,109450.0,109440.0,0.41699]
[1756820076928,0.001,109450.0,109440.0,0.03699]
[1756820077230,0.47549713,109450.0,109430.0,1.36157]
[1756820077629,0.3638,109460.0,109440.0,0.03393]
[1756820077817,0.47349713,109450.0,109440.0,0.03393]
[1756820078123,0.47949713,109450.0,109440.0,0.03493]
[1756820078328,0.006,109450.0,109440.0,1.08842713]
[1756820078529,0.001,109460.0,109450.0,0.04821]
[1756820078718,0.001,109460.0,109450.0,1.75373]
[1756820078914,0.001,109460.0,109450.0,1.01293]
[1756820079120,0.83429713,109470.0,109450.0,1.01293]
[1756820079420,0.3608,109470.0,109460.0,0.03393]
[1756820079728,0.84229713,109470.0,109450.0,0.04821]
[1756820079939,0.3608,109460.0,109450.0,0.85421]
[1756820080120,0.3618,109460.0,109450.0,0.85421]
[1756820080435,0.83529713,109460.0,109450.0,0.85421]
[1756820080614,0.001,109460.0,109450.0,2.28850713]
[1756820080814,0.001,109460.0,109450.0,1.46501]
[1756820081119,0.001,109460.0,109450.0,1.93850713]
[1756820081329,0.001,109460.0,109450.0,2.36301531]
[1756820081617,0.001,109460.0,109450.0,2.43437611]
[1756820081823,0.3688,109540.0,109510.0,0.03393]
[1756820082015,0.38979717,109540.0,109520.0,1.47126713]
[1756820082220,0.3688,109540.0,109520.0,1.47126713]
[1756820082420,0.3688,109540.0,109520.0,0.03393]
[1756820082623,0.008,109530.0,109510.0,0.3608]
[1756820082825,0.008,109530.0,109510.0,0.77917121]
[1756820083017,0.008,109530.0,109510.0,1.06325121]
[1756820083018,0.3608,109520.0,109510.0,1.06325121]
[1756820083226,0.83429713,109520.0,109500.0,1.04352121]
[1756820083425,0.84229713,109510.0,109500.0,1.03888]
[1756820083730,0.84229713,109510.0,109480.0,1.01867785]
[1756820083731,0.008,109500.0,109480.0,1.01867785]
[1756820083927,0.84229713,109500.0,109480.0,1.38867785]
[1756820084117,0.84229713,109500.0,109480.0,0.39022785]
[1756820084118,0.83429713,109490.0,109480.0,0.39022785]
[1756820084319,0.83429713,109490.0,109480.0,0.98418785]
[1756820084517,0.84229713,109490.0,109480.0,0.02022785]
[1756820084718,0.008,109480.0,109460.0,0.99729]
[1756820084920,0.008,109480.0,109460.0,1.36729]
[1756820084921,0.84229713,109480.0,109460.0,1.36729]
[1756820085532,0.84229713,109480.0,109460.0,0.40393]
[1756820085741,0.84229713,109480.0,109460.0,1.36717]
[1756820085917,0.48149713,109470.0,109460.0,0.37]
[1756820086229,0.84129713,109470.0,109460.0,1.07232]
[1756820086435,0.84029713,109470.0,109460.0,1.07232]
[1756820086724,0.3668,109470.0,109450.0,2.96066601]
[1756820086929,0.47949713,109470.0,109450.0,3.27066601]
[1756820087132,0.3618,109480.0,109470.0,0.03393]
[1756820087318,0.3618,109480.0,109470.0,1.83906713]
[1756820087319,0.001,109480.0,109470.0,1.83906713]
[1756820087624,0.001,109480.0,109470.0,1.68053121]
[1756820087829,0.001,109480.0,109470.0,1.36609]
[1756820088225,0.001,109480.0,109470.0,0.03393]
[1756820088429,0.001,109480.0,109460.0,0.08797859]
[1756820088430,1.08529713,109480.0,109460.0,0.08797859]
[1756820088620,0.84029713,109470.0,109460.0,0.02353738]
[1756820089217,0.85229713,109470.0,109460.0,0.02153738]
[1756820089426,1.10229713,109470.0,109460.0,0.02153738]
[1756820090232,1.10329713,109470.0,109460.0,0.02153738]
[1756820092029,0.85329713,109470.0,109460.0,0.02153738]
[1756820092236,0.013,109470.0,109460.0,2.41860451]
[1756820092532,0.013,109470.0,109460.0,1.61555822]
[1756820092730,0.013,109470.0,109460.0,2.32452888]
[1756820093036,0.013,109470.0,109460.0,2.57452888]
[1756820093234,0.013,109470.0,109460.0,2.41888451]
[1756820093431,0.013,109470.0,109460.0,2.4832089]
[1756820093631,0.013,109470.0,109460.0,1.75971177]
[1756820094026,0.013,109470.0,109460.0,1.05055177]
[1756820094235,0.013,109470.0,109460.0,2.00931177]
[1756820094636,0.013,109470.0,109460.0,2.47942821]
[1756820094838,0.013,109470.0,109460.0,2.00931177]
[1756820096042,0.013,109470.0,109460.0,2.47942821]
[1756820096537,0.013,109470.0,109460.0,2.57078071]
[1756820096937,0.013,109470.0,109460.0,2.47942821]
[1756820097133,0.013,109470.0,109460.0,1.52066821]
[1756820097333,0.013,109470.0,109460.0,2.47674821]
[1756820097539,0.013,109470.0,109460.0,2.56810071]
[1756820097735,0.013,109470.0,109460.0,2.50381632]
[1756820098042,0.013,109470.0,109460.0,4.43401632]
[1756820098243,0.013,109470.0,109460.0,4.51511244]
[1756820098638,0.3668,109520.0,109480.0,0.0913324]
[1756820098842,0.3608,109510.0,109500.0,0.04821]
[1756820099037,0.3668,109510.0,109500.0,1.00321]
[1756820099437,0.006,109500.0,109480.0,0.09817394]
[1756820099644,0.006,109490.0,109480.0,0.95428]
[1756820099843,0.3668,109490.0,109480.0,0.95528]
[1756820100044,0.6168,109490.0,109480.0,0.95528]
[1756820100449,0.6168,109490.0,109480.0,0.95428]
[1756820100638,1.08091644,109490.0,109460.0,2.96886132]
[1756820100839,0.3668,109470.0,109460.0,2.90408]
[1756820101036,0.6108,109490.0,109460.0,2.90408]
[1756820101239,0.3608,109480.0,109470.0,0.03393]
[1756820101440,0.3688,109500.0,109470.0,0.3608]
[1756820101748,0.3688,109500.0,109490.0,0.39473]
[1756820101749,0.002,109500.0,109490.0,0.39473]
[1756820102139,0.3628,109500.0,109490.0,0.98805]
[1756820102341,0.002,109500.0,109490.0,2.28029394]
[1756820102545,0.002,109500.0,109490.0,2.55031862]
[1756820102742,0.3818,109560.0,109520.0,0.03393]
[1756820102944,0.3818,109560.0,109520.0,0.7208]
[1756820102945,0.3608,109540.0,109520.0,0.7208]
[1756820103146,0.3818,109540.0,109530.0,0.6578]
[1756820103652,0.47011644,109550.0,109540.0,0.03393]
[1756820103954,0.3608,109570.0,109550.0,0.04821]
[1756820104148,0.002,109560.0,109550.0,1.00277]
[1756820104351,0.3628,109560.0,109530.0,0.83091644]
[1756820104552,0.85391644,109560.0,109540.0,0.03393]
[1756820104747,0.83091644,109550.0,109520.0,0.06427278]
[1756820104953,0.3608,109530.0,109520.0,1.02825]
[1756820105141,0.3818,109530.0,109520.0,0.99672]
[1756820105345,0.6108,109530.0,109520.0,1.03065]
[1756820105545,0.3608,109530.0,109520.0,1.03165]
[1756820105739,0.3608,109530.0,109520.0,0.07493]
[1756820105947,1.10191644,109530.0,109520.0,0.041]
[1756820106147,1.10191644,109530.0,109520.0,0.001]
[1756820106550,1.08091644,109530.0,109480.0,0.46106278]
[1756820106752,0.3608,109500.0,109490.0,0.99215]
[1756820106960,0.3608,109520.0,109510.0,0.03599]
[1756820107152,0.3588,109520.0,109510.0,0.99335]
[1756820107346,0.3608,109530.0,109520.0,0.03599]